[Event "Romanian Superleague 2022"]
[Site "Oradea"]
[Date "2022.09.29"]
[Round "9.6"]
[White "Bulau, Andrei-Cristian"]
[Black "Pisu, Robert-Daniel"]
[Result "0-1"]
[ECO "D36"]
[WhiteElo "2183"]
[BlackElo "2223"]
[Annotator "TA"]
[PlyCount "128"]
[EventDate "2022.09.21"]
[EventType "team-tourn"]
[EventCountry "ROU"]
[SourceTitle "playchess.com"]
[Source "ChessBase"]
[SourceQuality "1"]
[TimeControl "40/5400+30:1800+30"]

{[%evp 14,128,18,0,17,14,53,66,52,50,50,32,34,33,47,36,60,18,18,15,21,4,16,2,17,0,0,0,0,0,0,-30,-59,-47,0,-82,-35,-20,-16,-40,-21,-20,0,-10,-5,-5,-7,-6,-8,-9,-7,-6,-17,-607,-589,-550,215,-422,0,0,0,0,0,0,0,-12,-71,-65,-13,-11,-11,-54,-53,-52,-60,-56,-29,-32,0,-4,0,-3,0,-31,-15,-92,-4,-8,0,-25,-34,-211,-217,-540,-432,-500,-322,-559,-559,-559,-541,-510,-498,-460,-240,-240,-240,-240,-185,-221,-222,-206,0,-182,-182,-29994,-29995]} 1. d4 {[%emt 0:00:05]} d5 {[%emt 0:00:06]} 2. c4 {[%emt 0:00:06]} e6 {[%emt 0:00:09]} 3. Nc3 {[%emt 0:00:06]} Be7 {[%emt 0:00:19]} 4. cxd5 {[%emt 0:00:11]} exd5 {[%emt 0:00:06]} 5. Qc2 {[%emt 0:00:04]} c6 {[%emt 0:02:13]} 6. Nf3 {[%emt 0:00:20]} Nf6 {[%emt 0:05:05]} 7. Bg5 {[%emt 0:00:32]} h6 {[%emt 0:02:00]} 8. Bh4 {[%emt 0:00:17]} Nbd7 {[%emt 0:06:29] D36: Queen's Gambit Declined: Exchange Variation: Main line (5 Bg5 c6 6 Qc2).} 9. e3 {[%emt 0:00:11]} g5 {[%emt 0:05:26]} 10. Bg3 {[%emt 0:00:05]} Nh5 {[%emt 0:01:36] White is slightly better.} 11. Bd3 {[%emt 0:07:26]} g4 {[%emt 0:05:56]} 12. Nd2 {[%emt 0:01:54] [#]} Nxg3 $146 {[%emt 0:01:34]} ({Predecessor:} 12... Nf8 13. O-O-O Nxg3 14. hxg3 Bg5 15. Kb1 Ne6 16. Nb3 a5 17. Na4 Qc7 18. e4 b5 {1-0 (29) Bocci,A (1936)-Biava,P (1784) Crema 2009}) 13. hxg3 {[%emt 0:00:01]} Nf6 {[%emt 0:01:21]} 14. Nb3 {[%emt 0:06:37]} a5 {[%emt 0:07:56]} 15. Ne2 {[%emt 0:06:37]} a4 {[%emt 0:06:24]} 16. Nd2 {[%emt 0:00:41]} a3 {[%emt 0:07:00]} 17. b3 {[%emt 0:00:27]} Qa5 {[%emt 0:00:27]} 18. Nf4 {[%emt 0:01:40]} Bd7 {[%emt 0:06:40]} 19. Rc1 {[%emt 0:07:31]} Bb4 {[%emt 0:07:31]} 20. Nh5 {[%emt 0:04:04]} Nxh5 {[%emt 0:04:14]} 21. Rxh5 {[%emt 0:00:05]} O-O-O {[%emt 0:01:56]} 22. Kd1 {[%emt 0:08:32]} (22. Ke2 $5 {[%cal Rd2b1]}) 22... Kb8 {[%emt 0:04:38][%cal Of7f5]} 23. Nb1 {[%emt 0:01:49]} c5 {[%emt 0:08:50]} (23... Be8 $15 {deserves consideration.}) 24. dxc5 {[%emt 0:18:01]} (24. Rxd5 $11 Bc6 25. Rxc5 Bxc5 26. Qxc5 Qxc5 27. Rxc5) 24... Bc6 {[%emt 0:01:31]} ({Better is} 24... Rc8 $17) 25. Nd2 $15 {[%emt 0:01:16]} Rhe8 {[%emt 0:04:55][%mdl 1024] Black has compensation.} 26. Ke2 {[%emt 0:03:26]} (26. Rxh6 d4 27. e4 f5 $17) 26... d4 {[%emt 0:02:18]} 27. e4 {[%emt 0:05:37]} Qc7 {[%emt 0:01:14]} 28. Kf1 {[%emt 0:02:10]} (28. Rxh6 $2 f5 29. Kd1 Bxd2 30. Rxc6 Qxc6 $19) 28... Re5 {[%emt 0:00:55]} 29. Rxe5 Qxe5 {[%emt 0:00:02]} 30. Kg1 {[%emt 0:03:35]} h5 {[%emt 0:01:32][%cal Bh6h5,Bh5h4][%mdl 32]} 31. Nc4 $1 {[%emt 0:02:07]} Qxc5 {[%emt 0:02:11][%cal Of7f5] White should prevent ...f5!} 32. Nxa3 $1 {[%emt 0:00:08]} Qg5 {[%emt 0:00:27]} 33. Nb5 {[%emt 0:04:54][%mdl 8192]} h4 $1 $19 {[%emt 0:00:52]} 34. a3 {[%emt 0:01:37] And now gxh4 would win.} Bd2 $4 {[%emt 0:01:18][%mdl 8192] This bishop pair is nice.} (34... hxg3 $19 35. Rd1 (35. axb4 $2 gxf2+ 36. Qxf2 Qxc1+ 37. Qf1 Qe3+ 38. Qf2 Qxd3 $19) 35... Be7) 35. Rd1 $4 {[%emt 0:00:25][%mdl 8192]} (35. gxh4 $18 Qh6 36. Rd1) 35... Ba5 $2 {[%emt 0:00:29]} (35... Be3 $1 $19 36. Re1 (36. fxe3 $2 hxg3 37. Re1 dxe3 $19) (36. gxh4 $2 Qxh4 37. fxe3 dxe3 $19) 36... hxg3 37. fxe3 dxe3) 36. Qc1 $11 {[%emt 0:03:03]} Qh5 {[%emt 0:00:50]} 37. Qf4+ {[%emt 0:01:47]} Ka8 {[%emt 0:00:01]} 38. Nc7+ {[%emt 0:00:17]} Ka7 {[%emt 0:00:26] Threatens to win with ...Rh8.} 39. Nd5 {[%emt 0:01:10]} hxg3 {[%emt 0:01:05]} 40. fxg3 {[%emt 0:00:00] Hoping for Nf6.} Bxd5 {[%emt 0:00:00]} (40... Rh8 $15 41. Rf1 (41. Kf2 Bxd5 42. exd5 Qxd5 $15) 41... f5 42. Qxf5 Qh2+ 43. Kf2 Bxd5 44. exd5 Bd2) 41. exd5 {[%emt 0:01:10]} Qxd5 {[%emt 0:04:24]} 42. b4 {[%emt 0:09:29]} Qb3 {[%emt 0:05:57]} 43. Qxg4 {[%emt 0:00:31]} Bb6 {[%emt 0:01:47]} 44. a4 {[%emt 0:04:21] [#]} Rg8 $1 {[%emt 0:05:44]} 45. Qe2 {[%emt 0:00:30]} Qxa4 {[%emt 0:04:04]} 46. Qf1 {[%emt 0:01:42] Ra1 is the strong threat.} Kb8 {[%emt 0:02:12]} (46... Rxg3 $2 47. Ra1 Qxa1 48. Qxa1+ $18) 47. Ra1 {[%emt 0:00:46]} Qd7 {[%emt 0:02:55]} 48. Qf2 {[%emt 0:05:21]} Qd5 {[%emt 0:01:14]} 49. Rc1 {[%emt 0:03:52]} ({Of course not} 49. Qf4+ Bc7 50. Qf5 Qxf5 51. Bxf5 Bxg3 $17) (49. Rf1 $11 {remains equal.}) 49... Qe5 {[%emt 0:03:28]} (49... Bc7 $17 50. Rc5 Qd7) 50. Re1 $132 {[%emt 0:01:22][%mdl 2048] White puts up resistance} Qh5 {[%emt 0:01:32]} (50... Qxg3 $2 51. Re8+ $3 {[%mdl 512]} Rxe8 52. Qxg3+ $18) 51. Qf6 {[%emt 0:01:08]} Bc7 {[%emt 0:00:51]} 52. Be2 $2 {[%emt 0:04:11]} (52. Qf3 $15 Qg5 53. Qxf7) 52... Qh7 $1 $19 {[%emt 0:01:18]} 53. Qh4 {[%emt 0:02:51]} (53. Qxd4 Re8 54. Ra1 Rxe2 55. Qa7+ Kc8 56. Qd4) 53... Qg6 {[%emt 0:01:43] White must now prevent ...d3.} 54. Bf3 {[%emt 0:01:13]} Bxg3 {[%emt 0:00:49]} 55. Qe7 {[%emt 0:01:51]} (55. Qxd4 Bxe1 56. Qe5+ Ka7 57. Qa1+ Qa6 58. Qxe1) 55... Qb6 {[%emt 0:00:04]} 56. Rd1 {[%emt 0:02:10]} d3+ {[%emt 0:01:20]} 57. Qc5 {[%emt 0:00:03]} Qh6 {[%emt 0:00:45]} 58. Rxd3 {[%emt 0:01:17]} Qh2+ {[%emt 0:00:05]} ({And not} 58... Rc8 59. Qd4 $17) (58... Re8 $142 {[%cal Re8e1]} 59. Rd1 Rh8) 59. Kf1 {[%emt 0:00:00]} Re8 {[%emt 0:01:05][%csl Gg3][%cal Re8e1]} 60. Rd1 {[%emt 0:00:18] Against Re1+} Qh1+ {[%emt 0:00:34]} 61. Qg1 {[%emt 0:00:02]} Qh4 {[%emt 0:00:33]} 62. Qb6 {[%emt 0:01:08][%csl Gf3][%cal Rb6b7]} Qh1+ {[%emt 0:00:23]} 63. Qg1 {[%emt 0:00:01]} Qh6 {[%emt 0:00:37] ( -> ...Qa6+)} 64. Qc5 $2 {[%emt 0:00:47] [#]} (64. Ra1 $2 {is a self mate.} Qa6+ $3 {[%mdl 512]} 65. b5 Qxa1+) (64. Qd4 $19) 64... Qd2 $3 {[%emt 0:00:31][%mdl 512] Weighted Error Value: White=0.48/Black=0.45} 0-1

[Event "Romanian Superleague 2022"]
[Site "Oradea"]
[Date "2022.09.29"]
[Round "9.7"]
[White "Deac, Bogdan-Daniel"]
[Black "Sumets, Andrey"]
[Result "1-0"]
[ECO "A14"]
[WhiteElo "2710"]
[BlackElo "2513"]
[Annotator "TA"]
[PlyCount "77"]
[EventDate "2022.09.21"]
[EventType "team-tourn"]
[EventCountry "ROU"]
[SourceTitle "playchess.com"]
[Source "ChessBase"]
[SourceQuality "1"]
[TimeControl "40/5400+30:1800+30"]

{[%evp 10,77,16,5,14,11,12,8,18,8,13,12,0,0,17,17,12,16,8,19,30,4,11,22,16,0,0,-12,-14,-14,-12,-12,-31,-100,-100,-100,-83,-119,-72,-52,-48,-104,-91,-131,-119,-138,-106,-152,-164,-144,-108,-117,-134,-142,25,35,101,101,234,228,350,347,798,891,865,863,910,952,955,920]} 1. Nf3 {[%emt 0:00:11]} d5 {[%emt 0:00:11]} 2. g3 {[%emt 0:00:03]} Nf6 {[%emt 0:00:50]} 3. Bg2 {[%emt 0:00:12]} e6 {[%emt 0:00:06]} 4. c4 {[%emt 0:00:16]} Be7 {[%emt 0:00:07]} 5. O-O {[%emt 0:00:23]} O-O {[%emt 0:00:08]} 6. d3 {[%emt 0:00:03]} b6 {[%emt 0:07:45] A14: English Opening: 1...e6 with b3 by White.} 7. cxd5 {[%emt 0:02:54]} exd5 {[%emt 0:01:58]} 8. Nc3 {[%emt 0:05:49]} Bb7 {[%emt 0:00:12] The position is equal.} 9. d4 {[%emt 0:00:03]} Na6 {[%emt 0:00:54][%cal Bb8a6,Ba6c7,Bc7e6,Be6g5,Bg5f7][%mdl 32]} 10. b3 {[%emt 0:01:47] [#]} Ne4 $146 {[%emt 0:09:08]} ({Predecessor:} 10... Re8 11. Bb2 c6 12. Ne5 Bd6 13. e4 c5 14. Nxd5 cxd4 15. Ng4 Nxd5 16. exd5 d3 17. Qxd3 Nb4 18. Qd2 Ba6 19. Bxg7 {1-0 (21) Bykov,O (2383)-Bazeev,G (2431) St Petersburg 2018}) 11. Bb2 {[%emt 0:00:47]} Nxc3 {[%emt 0:05:18]} 12. Bxc3 {[%emt 0:00:43]} c6 {[%emt 0:00:36]} 13. Bb2 {[%emt 0:06:54]} Nc7 {[%emt 0:00:11]} 14. Ne5 {[%emt 0:00:36]} Ne6 {[%emt 0:00:59]} 15. e4 {[%emt 0:10:36]} Ng5 {[%emt 0:04:45]} 16. exd5 {[%emt 0:04:51]} cxd5 {[%emt 0:00:09]} 17. f3 {[%emt 0:00:07]} f6 {[%emt 0:12:52]} 18. Ng4 {[%emt 0:02:42]} Ba6 {[%emt 0:05:02]} 19. Rf2 {[%emt 0:00:10]} Re8 {[%emt 0:00:44]} 20. h4 {[%emt 0:01:29]} Nf7 {[%emt 0:01:31]} 21. f4 {[%emt 0:05:37]} (21. Qd2 $1 $15) 21... Bb4 $17 {[%emt 0:04:17]} 22. Qf3 {[%emt 0:07:14]} Qe7 {[%emt 0:09:03] Against Ne3. Strongly threatening ...Be2.} 23. a3 {[%emt 0:05:14] [#]} ({Don't blunder} 23. Qxd5 $2 Rad8 24. Qf3 Be2 25. Rxe2 Qxe2 26. Qxe2 Rxe2 $19) 23... Be1 {[%emt 0:05:54]} (23... Be2 $142 $1 {[%cal Re2f3]} 24. Qxd5 Bxg4 25. axb4 Qe3) 24. Rc2 {[%emt 0:00:16][%cal Og4e5]} Rac8 {[%emt 0:00:05]} 25. Rxc8 {[%emt 0:05:02]} (25. Bc3 $1 $15 Bxc3 26. Rxc3) 25... Bxc8 {[%emt 0:00:25]} 26. Ne5 {[%emt 0:05:51]} fxe5 {[%emt 0:06:22]} 27. fxe5 {[%emt 0:01:46]} Bd2 {[%emt 0:01:57] And now ...Be6 would win.} 28. Rd1 {[%emt 0:00:05]} (28. Qxd5 $142 g6 29. Rf1) 28... Bh6 {[%emt 0:02:02] Threatens to win with ...g5.} 29. Qxd5 {[%emt 0:00:03]} Bg4 {[%emt 0:08:36]} 30. Rf1 {[%emt 0:01:24]} Be6 {[%emt 0:05:14]} 31. Qb5 {[%emt 0:00:26]} Rd8 $2 {[%emt 0:07:38]} (31... g5 $17 32. hxg5 Bxg5) 32. d5 $11 {[%emt 0:01:53]} a6 {[%emt 0:00:34] [#]} ({Black should play} 32... Bd7 $14 33. Qc4 Rc8) 33. Qc6 $1 $16 {[%emt 0:00:55]} Bd7 {[%emt 0:00:37] This costs Black the game.} (33... Be3+ $16 {keeps fighting.} 34. Kh1 Bd7) 34. Qxb6 $18 {[%emt 0:03:37]} Bb5 {[%emt 0:00:04]} (34... Bg4 $142 35. a4 Re8) 35. Rf2 {[%emt 0:01:19]} Qe8 $2 {[%emt 0:01:11]} (35... Rf8 36. a4 Nxe5 37. Rxf8+ (37. axb5 Rxf2 38. Qxf2 Ng4 $16) 37... Kxf8 38. Qb8+ (38. axb5 Nf3+ 39. Kf2 Qe1+ 40. Kxf3 Qd1+ 41. Kf2 Qd2+ 42. Kf3 Qd1+ 43. Kf2 Qd2+ 44. Kf3 Qd1+ $11) 38... Be8 39. Bxe5 Be3+ 40. Kh2 Ba7) 36. e6 {[%emt 0:04:06] White is clearly winning.} Nd6 {[%emt 0:00:11]} 37. g4 {[%emt 0:00:44]} Rb8 {[%emt 0:00:51]} 38. Qxd6 {[%emt 0:00:27] Threatening mate with Qe5.} Be3 {[%emt 0:00:04]} 39. Qe5 {[%emt 0:01:09][%csl LRe3,LRg7] Weighted Error Value: White=0.11 (very precise) /Black=0.34} 1-0

[Event "Romanian Superleague 2022"]
[Site "Oradea"]
[Date "2022.09.29"]
[Round "9.8"]
[White "Cioara, Andrei-Nestor"]
[Black "Miroshnichenko, Evgenij"]
[Result "1/2-1/2"]
[WhiteElo "2407"]
[BlackElo "2597"]
[Annotator "TA"]
[PlyCount "35"]
[EventDate "2022.09.21"]
[EventType "team-tourn"]
[EventCountry "ROU"]
[SourceTitle "playchess.com"]
[Source "ChessBase"]
[SourceQuality "1"]
[TimeControl "40/5400+30:1800+30"]

{[%evp 17,19,31,35,18]} 1. d4 {[%emt 0:00:04]} Nf6 {[%emt 0:00:07]} 2. c4 {[%emt 0:00:07]} c5 {[%emt 0:00:06]} 3. d5 {[%emt 0:00:18]} b5 {[%emt 0:00:06]} 4. Qc2 {[%emt 0:04:07]} bxc4 {[%emt 0:01:11]} 5. e4 {[%emt 0:00:03]} d6 {[%emt 0:05:23]} 6. Bxc4 {[%emt 0:05:00]} g6 {[%emt 0:00:14]} 7. Nf3 {[%emt 0:00:11]} Bg7 {[%emt 0:00:14]} 8. O-O {[%emt 0:00:08]} O-O {[%emt 0:00:15]} 9. Nc3 {[%emt 0:00:20] 9.Re1 is a critical line.} Nbd7 {[%emt 0:02:07]} 10. Re1 {[%emt 0:04:34] [#] A rather calm draw. A57: Benko/Volga Gambit.} {Predecessor:} Rb8 $146 11. Bf4 Nb6 12. Bf1 Ne8 13. h3 Nc7 14. Rad1 Bb7 15. b3 Qd7 16. a4 Ba6 17. Be2 Bxe2 18. Rxe2 {0-1 (38) Kogan,A (2501)-Carlsen,M (2847) chess24.com INT 2021} 1/2-1/2

[Event "Romanian Superleague 2022"]
[Site "Oradea"]
[Date "2022.09.29"]
[Round "9.9"]
[White "Iordachescu, Viorel"]
[Black "Stepanencu, Nicodim-Cosmin"]
[Result "1-0"]
[ECO "C78"]
[WhiteElo "2585"]
[BlackElo "2289"]
[Annotator "TA"]
[PlyCount "57"]
[EventDate "2022.09.21"]
[EventType "team-tourn"]
[EventCountry "ROU"]
[SourceTitle "playchess.com"]
[Source "ChessBase"]
[SourceQuality "1"]
[TimeControl "40/5400+30:1800+30"]

{[%evp 14,57,13,0,11,0,38,-25,63,22,68,27,66,64,55,61,62,51,48,50,58,57,60,40,29,66,70,39,52,47,36,41,147,154,163,156,145,0,0,0,97,104,93,92,1846,1855]} 1. e4 {[%emt 0:00:17]} e5 {[%emt 0:00:23]} 2. Nf3 {[%emt 0:00:10]} Nc6 {[%emt 0:00:01]} 3. Bb5 {[%emt 0:00:14]} a6 {[%emt 0:00:06]} 4. Ba4 {[%emt 0:00:07]} Nf6 {[%emt 0:00:06]} 5. Bxc6 {[%emt 0:00:37]} dxc6 {[%emt 0:00:10]} 6. d3 {[%emt 0:00:06]} Bc5 {[%emt 0:04:32]} 7. Be3 {[%emt 0:02:27]} Qe7 {[%emt 0:06:17]} 8. O-O {[%emt 0:01:02]} Bg4 {[%emt 0:02:12] has lost popularity (8...0-0). C78: Ruy Lopez: Archangelsk and Möller Defences.} 9. Nbd2 {[%emt 0:01:52]} O-O-O {[%emt 0:06:27]} 10. Qc1 {[%emt 0:06:34]} (10. Bxc5 $14 Qxc5 11. Re1) 10... h6 {[%emt 0:18:59]} (10... Nd7 $11) 11. a3 {[%emt 0:06:19]} g5 {[%emt 0:01:01] [#]} (11... Bxe3 $11 12. fxe3 Bxf3 13. Rxf3 Kb8) 12. b4 $146 {[%emt 0:00:37][%cal Bb2b4,Bb4b5][%mdl 32]} ({Predecessor:} 12. h3 Bh5 13. Bxc5 Qxc5 14. Nb3 Qe7 15. Qe3 b6 16. Nfd2 g4 17. h4 {0-1 (39) Micek,J (1739)-Zido,P (1931) Slovakia 2017}) 12... Bd4 {[%emt 0:00:04]} 13. Bxd4 {[%emt 0:04:33]} exd4 {[%emt 0:00:49]} 14. Qb2 {[%emt 0:01:59]} Bxf3 {[%emt 0:07:23]} 15. Nxf3 {[%emt 0:00:44]} Qd7 {[%emt 0:04:56]} 16. a4 {[%emt 0:02:55][%cal Ob4b5] aiming for b5!} Nh5 {[%emt 0:08:12][%cal Bf6h5,Bh5f4,Bf4e2,Be2c3][%mdl 32]} 17. b5 {[%emt 0:01:14]} Nf4 $1 {[%emt 0:00:06]} (17... cxb5 18. axb5 Nf4 19. bxa6 $16) 18. Rfb1 {[%emt 0:19:13]} Qg4 {[%emt 0:04:55][%csl Gf4][%cal Rg4g2]} 19. Ne1 {[%emt 0:00:16]} Ne2+ {[%emt 0:03:35]} 20. Kh1 {[%emt 0:01:14]} Nc3 $1 {[%emt 0:05:20]} 21. bxc6 {[%emt 0:04:51][%csl Gb1,Gc6][%cal Rb2b7]} b6 {[%emt 0:01:12]} 22. Nf3 {[%emt 0:04:15] Threatens to win with a5.} Qf4 {[%emt 0:08:12]} (22... Nxb1 $14 23. Rxb1 Qe6) 23. Qb4 $16 {[%emt 0:11:50]} Nxb1 {[%emt 0:01:07]} 24. Rxb1 $40 {[%emt 0:05:27][%mdl 128] White attacks with force.} Kb8 {[%emt 0:04:20]} 25. Qc4 {[%emt 0:04:10]} (25. Qe7 $16 {[%cal Ob1b6] White wants to mate with Rxb6+!} Ka7 26. Ne5) 25... Ka7 $11 {[%emt 0:04:23]} 26. a5 {[%emt 0:01:16] Hoping for axb6+.} b5 {[%emt 0:02:47]} (26... Rb8 $1 $11) 27. Qc5+ $16 {[%emt 0:00:36]} Ka8 {[%emt 0:00:01]} 28. Nxd4 {[%emt 0:01:31] White is more active.} Qxf2 $2 {[%emt 0:05:40][%mdl 8192] [#]} (28... Rb8 $16) 29. Nxb5 $1 {[%emt 0:00:32][%mdl 512] Weighted Error Value: White=0.24 (precise) /Black=0.20 (precise)} 1-0

[Event "Romanian Superleague 2022"]
[Site "Oradea"]
[Date "2022.09.29"]
[Round "9.10"]
[White "Vajda, Albert"]
[Black "Szabo, Gergely-Andras-Gyula"]
[Result "1/2-1/2"]
[ECO "D31"]
[WhiteElo "2305"]
[BlackElo "2512"]
[Annotator "TA"]
[PlyCount "20"]
[EventDate "2022.09.21"]
[EventType "team-tourn"]
[EventCountry "ROU"]
[SourceTitle "playchess.com"]
[Source "ChessBase"]
[SourceQuality "1"]
[TimeControl "40/5400+30:1800+30"]

{[%evp 9,20,22,37,29,35,14,24,6,0,10,15,0,38]} 1. d4 {[%emt 0:00:03]} d5 {[%emt 0:00:08]} 2. c4 {[%emt 0:00:21]} e6 {[%emt 0:00:04]} 3. Nc3 {[%emt 0:00:08]} a6 {[%emt 0:00:04]} 4. cxd5 {[%emt 0:02:51]} exd5 {[%emt 0:00:03]} 5. Nf3 {[%emt 0:00:21]} h6 {[%emt 0:00:09]} 6. Bf4 {[%emt 0:15:09] D31: Queen's Gambit Declined: Semi-Slav without ...Nf6 (+ Marshall Gambit and Noteboom) and Exchange Variation lines without ...Nf6.} Nf6 {[%emt 0:00:14]} 7. e3 {[%emt 0:03:43]} Bd6 {[%emt 0:01:53]} 8. Bg3 {[%emt 0:02:52]} Bxg3 {[%emt 0:19:07] The position is equal.} 9. hxg3 {[%emt 0:00:07] [#]} Qd6 $146 {[%emt 0:01:42]} ({Predecessor:} 9... O-O 10. Bd3 Re8 11. Qc2 c5 12. dxc5 d4 13. Nd1 Nc6 14. a3 Bg4 15. O-O Bxf3 16. gxf3 {1-0 (81) Iniyan,P (2556)-Panda,S (2346) Dubai 2022}) 10. Bd3 {[%emt 0:03:33]} Nc6 {[%emt 0:08:53] Black did not feel at home in the position after the opening.  Weighted Error Value: White=0.12 (very precise) /Black=0.03 (flawless)} 1/2-1/2

[Event "Romanian Superleague 2022"]
[Site "Oradea"]
[Date "2022.09.29"]
[Round "9.11"]
[White "Nevednichy, Vladislav"]
[Black "Balla, Tamas-Kristof"]
[Result "1-0"]
[ECO "B42"]
[WhiteElo "2472"]
[BlackElo "2325"]
[Annotator "TA"]
[PlyCount "57"]
[EventDate "2022.09.21"]
[EventType "team-tourn"]
[EventCountry "ROU"]
[SourceTitle "playchess.com"]
[Source "ChessBase"]
[SourceQuality "1"]
[TimeControl "40/5400+30:1800+30"]

{[%evp 16,57,43,39,64,56,62,52,63,68,52,55,141,139,144,131,169,168,158,100,89,98,63,81,177,181,170,158,163,161,332,323,1024,997,1327,1304,1157,972,1250,1222,1663,1666,1506,1196]} 1. e4 {[%emt 0:00:03]} c5 {[%emt 0:00:04]} 2. Nf3 {[%emt 0:00:02]} e6 {[%emt 0:00:04]} 3. d4 {[%emt 0:00:03]} cxd4 {[%emt 0:00:04]} 4. Nxd4 {[%emt 0:00:02]} a6 {[%emt 0:00:07]} 5. Bd3 {[%emt 0:00:04]} Nf6 {[%emt 0:00:12]} 6. O-O {[%emt 0:00:39]} Qc7 {[%emt 0:00:04]} 7. Qe2 {[%emt 0:00:27]} d6 {[%emt 0:00:08]} 8. c4 {[%emt 0:00:06]} Nbd7 {[%emt 0:00:04]} 9. f4 {[%emt 0:01:40]} b6 {[%emt 0:02:56] B42: Sicilian: Kan Variation: 5 Bd3.} 10. Nc3 {[%emt 0:01:05]} Bb7 {[%emt 0:00:08]} 11. Bd2 {[%emt 0:10:12]} Be7 {[%emt 0:08:23] White is slightly better.} 12. Rac1 {[%emt 0:01:45]} O-O {[%emt 0:00:18]} 13. b4 {[%emt 0:03:15]} g6 {[%emt 0:06:54]} (13... Rac8 $14) 14. f5 $1 $16 {[%emt 0:14:29]} exf5 {[%emt 0:05:43]} 15. exf5 {[%emt 0:00:17]} Qd8 {[%emt 0:05:42]} 16. fxg6 {[%emt 0:14:42]} hxg6 {[%emt 0:00:30] [#]} 17. Bh6 $146 {[%emt 0:08:22]} (17. Nf5 $142 $1 {[%mdl 512]} Re8 18. Nh6+ Kg7 19. Rce1 (19. Nd5 Bxd5 20. cxd5 Ne5 $14)) ({Predecessor:} 17. Nd5 Nxd5 18. cxd5 Bxd5 19. Be4 Bxe4 20. Qxe4 Ne5 21. Qd5 Qd7 22. Rce1 Rfd8 23. Nf3 {½-½ (70) Fakhrutdinov,T (2481)-Radzhabov,R (2329) Moscow 2019}) 17... Re8 {[%emt 0:05:26] [#]} 18. Bxg6 $1 {[%emt 0:14:53] White has more active pieces.} fxg6 {[%emt 0:01:55]} 19. Qe6+ {[%emt 0:00:01]} ({Much worse is} 19. Ne6 Qc8 20. Ng7 Ne5 21. Nxe8 Qxe8 $17) 19... Kh8 {[%emt 0:00:08] [#]} (19... Kh7 $16 20. Bg5 Kh8) 20. Qh3 $1 $18 {[%emt 0:06:09][%mdl 1024] White has strong compensation.} Nh5 {[%emt 0:14:18]} (20... Ne5 $2 21. Ne6 Nh5 22. Nxd8 $18) 21. Ne6 {[%emt 0:04:35] Inhibits Bg5.} Qc8 {[%emt 0:00:39] Strongly threatening ...Ne5.} 22. Nd5 $40 {[%emt 0:06:44][%mdl 128] White goes for the king.} Bd8 $2 {[%emt 0:06:50]} (22... Bf6 $2 {[#]} 23. Rxf6 $1 {[%mdl 512]} Bxd5 24. cxd5 Ndxf6 25. Rxc8 Raxc8 26. g4 $18) (22... Ne5 {was necessary.}) 23. Ndf4 {[%emt 0:06:45]} (23. Bg7+ Kg8 24. Ndf4 Nf8 25. Nxh5 (25. Bxf8 Nxf4 26. Qh6 Ne2+ 27. Kf2 Bh4+ 28. g3 Rxf8+ 29. Nxf8 Qf5+ 30. Ke1 Bf3 $17) 25... Nxe6 $11) 23... Ne5 {[%emt 0:07:53]} (23... Rxe6 24. Qxe6 Ne5) 24. Nxh5 {[%emt 0:02:15][%cal Bf4h5,Bh5f6,Bf6d5][%mdl 32] White is clearly winning.} Nf3+ {[%emt 0:10:25]} 25. Rxf3 {[%emt 0:00:06]} Bxf3 {[%emt 0:00:04]} 26. Qxf3 {[%emt 0:01:46] White threatens Qc3+ and mate.} Qxe6 {[%emt 0:01:20]} 27. Qc3+ {[%emt 0:00:04]} ({Weaker is} 27. Qxa8 Bg5 28. Qf3 (28. Bg7+ $2 Kg8 $19) 28... Bxh6 $11) 27... Bf6 {[%emt 0:02:30]} 28. Nxf6 {[%emt 0:00:03]} Re7 {[%emt 0:00:41]} 29. Nd5+ {[%emt 0:00:15] Weighted Error Value: White=0.06 (flawless) /Black=0.34} 1-0